{"text_format":"2","workbook":"xlsx","n_sheets":5,"sheets":["ЛОТ 1 - Брод-XIII Канал","ЛОТ 2 - XIII Канал - Драгор","ЛОТ 3 - Драгор - Шемница","ЛОТ 4 - Рувци - Бучин","ЛОТ 5 - Канал БЛАТО"],"not_rendered":{"charts":0,"images":0,"macros":0,"external_links":1,"defined_names":0,"comments":0,"pivot_tables":0},"unopened":[],"bounds":{"document_bytes":16777216,"sheet_cells":100000,"run_cost":"one","rows_first":2000,"rows_last":500,"rows_between":2000,"halvings":0,"cell_chars":16384,"cell_head_chars":4096},"cells_cut":0,"cells_raw":0,"read":"whole","date_system":"1900"}

{"sheet":"ЛОТ 1 - Брод-XIII Канал","index":0,"n_rows":19,"n_cols":9,"rows_kept":19,"cut":false,"hidden":false,"merged":[]}
[null,"Чистење на река ЦРНА од ниска жбунеста и висока вегетација"]
["Од:","Село Брод, Општина Новаци (10+000 км)"]
["До:","XIII Канал, Општина Битола (20+500 км)"]
[]
[]
["Ред. бр.","ОПИС НА РАБОТА","Ед. мера","Количина"]
[null,"ЧИСТЕЊЕ НА ДЕЛ ОД РЕКА ЦРНА ОД ВЕГЕТАЦИЈА"]
["I","Претходни и припремни работи"]
["1.1","Одбележување на трасата и означување на опсегот на интервенција во присуство на надзорен орган","m'",10500]
[null,"Вкупно (I)"]
["II","Чистење на вегетација",null,null,"Real",100]
["2.1","Расчистување на минор и мајор коритото на река Црна од ниска жбунеста вегетација, со сечење, мулчирање, вадење на материјалот од коритото и одвоз до депонија на растојание од 15-20 км, без употреба на ископна механизација.","m²",{"$f":"D9*30*90%","v":283500},"Add 10%",{"$f":"F11*1","v":100},1000,{"$f":"(F12/G12)","v":0.1},"дрва/м'"]
["2.2","Расчистување на минор и мајор коритото на река Црна од вегетација (дрва со пречник од Ø10 до Ø30 см)  со сечење, мулчирање-уситнување, вадење на материјалот од коритото и одвоз до одредено место на растојание од 15-20 км, без употреба на ископна механизација.","ком",{"$f":"D9*H12*60%","v":630}]
["2.3","Расчистување на минор и мајор коритото на река Црна од вегетација (дрва со пречник поголем од Ø30 см)  со сечење, мулчирање-уситнување, вадење на материјалот од коритото и одвоз до одредено место на растојание од 15-20 км, без употреба на ископна механизација.","ком",{"$f":"D9*H12*40%","v":420}]
[null,"Вкупно (II)"]
[null,"Р Е К А П И Т У Л А Ц И Ј А"]
["I","Претходни и припремни работи"]
["II",{"$f":"B11","v":"Чистење на вегетација"}]
[null,"ВКУПНО:"]

{"sheet":"ЛОТ 2 - XIII Канал - Драгор","index":1,"n_rows":19,"n_cols":9,"rows_kept":19,"cut":false,"hidden":false,"merged":[]}
[null,"Чистење на река ЦРНА од ниска жбунеста и висока вегетација"]
["Од:","XIII Канал, Општина Битола (20+500 км)"]
["До:","Влив на река Драгор, Општина Битола (29+000 км)"]
[]
[]
["Ред. бр.","ОПИС НА РАБОТА","Ед. мера","Количина"]
[null,"ЧИСТЕЊЕ НА ДЕЛ ОД РЕКА ЦРНА ОД ВЕГЕТАЦИЈА"]
["I","Претходни и припремни работи"]
["1.1","Одбележување на трасата и означување на опсегот на интервенција во присуство на надзорен орган","m'",{"$f":"29000-20500","v":8500}]
[null,"Вкупно (I)"]
["II","Чистење на вегетација",null,null,"Real",100]
["2.1","Расчистување на минор и мајор коритото на река Црна од ниска жбунеста вегетација, со сечење, мулчирање, вадење на материјалот од коритото и одвоз до депонија на растојание од 10-15 км, без употреба на ископна механизација.","m²",{"$f":"D9*27*90%","v":206550},"Add 10%",{"$f":"F11*1","v":100},1000,{"$f":"(F12/G12)","v":0.1},"дрва/м'"]
["2.2","Расчистување на минор и мајор коритото на река Црна од вегетација (дрва со пречник од Ø10 до Ø30 см)  со сечење, мулчирање-уситнување, вадење на материјалот од коритото и одвоз до одредено место на растојание од 15-20 км, без употреба на ископна механизација.","ком",{"$f":"D9*H12*60%","v":510}]
["2.3","Расчистување на минор и мајор коритото на река Црна од вегетација (дрва со пречник поголем од Ø30 см)  со сечење, мулчирање-уситнување, вадење на материјалот од коритото и одвоз до одредено место на растојание од 15-20 км, без употреба на ископна механизација.","ком",{"$f":"D9*H12*40%","v":340}]
[null,"Вкупно (II)"]
[null,"Р Е К А П И Т У Л А Ц И Ј А"]
["I","Претходни и припремни работи"]
["II",{"$f":"B11","v":"Чистење на вегетација"}]
[null,"ВКУПНО:"]

{"sheet":"ЛОТ 3 - Драгор - Шемница","index":2,"n_rows":19,"n_cols":10,"rows_kept":19,"cut":false,"hidden":false,"merged":[]}
[null,"Чистење на река ЦРНА од ниска жбунеста и висока вегетација"]
["Од:","Влив на река Драгор, Општина Битола (29+000 км)"]
["До:","Влив на река Шемница, Општина Могила (36+500 км)"]
[]
[]
["Ред. бр.","ОПИС НА РАБОТА","Ед. мера","Количина"]
[null,"ЧИСТЕЊЕ НА ДЕЛ ОД РЕКА ЦРНА ОД ВЕГЕТАЦИЈА"]
["I","Претходни и припремни работи"]
["1.1","Одбележување на трасата и означување на опсегот на интервенција во присуство на надзорен орган","m'",{"$f":"36500-29000","v":7500}]
[null,"Вкупно (I)"]
["II","Чистење на вегетација",null,null,null,"Real",225]
["2.1","Расчистување на минор и мајор коритото на река Црна од ниска жбунеста вегетација, со сечење, мулчирање, вадење на материјалот од коритото и одвоз до депонија на растојание од 10-15 км, без употреба на ископна механизација.","m²",{"$f":"D9*25*90%","v":168750},null,"Add 10%",{"$f":"G11*1","v":225},2000,{"$f":"(G12/H12)","v":0.1125},"дрва/м'"]
["2.2","Расчистување на минор и мајор коритото на река Црна од вегетација (дрва со пречник од Ø10 до Ø30 см)  со сечење, мулчирање-уситнување, вадење на материјалот од коритото и одвоз до одредено место на растојание од 15-20 км, без употреба на ископна механизација.","ком",{"$f":"D9*I12*60%","v":506.25}]
["2.3","Расчистување на минор и мајор коритото на река Црна од вегетација (дрва со пречник поголем од Ø30 см)  со сечење, мулчирање-уситнување, вадење на материјалот од коритото и одвоз до одредено место на растојание од 15-20 км, без употреба на ископна механизација.","ком",{"$f":"D9*I12*40%","v":337.5}]
[null,"Вкупно (II)"]
[null,"Р Е К А П И Т У Л А Ц И Ј А"]
["I","Претходни и припремни работи"]
["II",{"$f":"B11","v":"Чистење на вегетација"}]
[null,"ВКУПНО:"]

{"sheet":"ЛОТ 4 - Рувци - Бучин","index":3,"n_rows":19,"n_cols":4,"rows_kept":19,"cut":false,"hidden":false,"merged":[]}
[null,"Чистење на река ЦРНА од ниска жбунеста и висока вегетација"]
["Од:","Пашино Рувци, Општина Кривогаштани (58+500 км)"]
["До:","Село Бучин, Општина Крушево (63+500 км)"]
[]
[]
["Ред. бр.","ОПИС НА РАБОТА","Ед. мера","Количина"]
[null,"ЧИСТЕЊЕ НА ДЕЛ ОД РЕКА ЦРНА ОД ВЕГЕТАЦИЈА"]
["I","Претходни и припремни работи"]
["1.1","Одбележување на трасата и означување на опсегот на интервенција во присуство на надзорен орган","m'",{"$f":"63500-58500","v":5000}]
[null,"Вкупно (I)"]
["II","Чистење на вегетација"]
["2.1","Расчистување на минор и мајор коритото на река Црна од ниска жбунеста вегетација, со сечење, мулчирање, вадење на материјалот од коритото и одвоз до депонија на растојание од 15-20 км, без употреба на ископна механизација.","m²",{"$f":"'[1]Рувци - Бучин 1'!$D$12","v":86700}]
["2.2","Расчистување на минор и мајор коритото на река Црна од вегетација (дрва со пречник од Ø10 до Ø30 см)  со сечење, мулчирање-уситнување, вадење на материјалот од коритото и одвоз до одредено место на растојание од 15-20 км, без употреба на ископна механизација.","ком",{"$f":"'[1]Рувци - Бучин 1'!$D$13","v":660}]
["2.3","Расчистување на минор и мајор коритото на река Црна од вегетација (дрва со пречник поголем од Ø30 см)  со сечење, мулчирање-уситнување, вадење на материјалот од коритото и одвоз до одредено место на растојание од 15-20 км, без употреба на ископна механизација.","ком",{"$f":"'[1]Рувци - Бучин 1'!$D$14","v":400}]
[null,"Вкупно (II)"]
[null,"Р Е К А П И Т У Л А Ц И Ј А"]
["I","Претходни и припремни работи"]
["II",{"$f":"B11","v":"Чистење на вегетација"}]
[null,"ВКУПНО:"]

{"sheet":"ЛОТ 5 - Канал БЛАТО","index":4,"n_rows":21,"n_cols":4,"rows_kept":21,"cut":false,"hidden":false,"merged":[]}
[null,"Чистење на канал БЛАТО (горен ток) од ниска жбунеста и висока вегетација и нанос"]
["Од:","(18+000 км)"]
["До:","(24+400 км)"]
[]
[]
["Ред. бр.","ОПИС НА РАБОТА","Ед. мера","Количина"]
[null,"ЧИСТЕЊЕ НА ДЕЛ ОД РЕКА ЦРНА ОД ВЕГЕТАЦИЈА"]
["I","Претходни и припремни работи"]
["1.1","Одбележување на трасата и означување на опсегот на интервенција во присуство на надзорен орган","m'",6400]
[null,"Вкупно (I)"]
["II","Чистење на вегетација и нанос"]
["2.1","Сечење на ниска и висока вегетација, врби и жбунови со извлекување на истата на брегот од коритото и транспорт на поголеми дрвја до одредено место","m3",{"$f":"[1]Блато!$D$6","v":300}]
["2.2","Машински ископ во мокро и лепливо на наносен материјал од речното корито и чистење од ниска вегетација шамак, трски, треви и друго со депонирање на платформата од мињор коритото.","m3",{"$f":"[1]Блато!$D$7","v":48900}]
["2.3","Машинско префрлување на депонираниот материјал на насипот од речното корито, разастирање со оформување на насипот","m3",{"$f":"[1]Блато!$D$8","v":34200}]
["2.4","Надградување на насипот од речното корито со вишокот од ископаниот материјал","m3",{"$f":"[1]Блато!$D$9","v":14700}]
["2.5","Изведба на испусти со влезна и излезна глава со бетонски цефки Ø500мм, L=15m, комплет со челичен поклопец 70*60 cm","ком",{"$f":"[1]Блато!$D$10","v":3}]
[null,"Вкупно (II)"]
[null,"Р Е К А П И Т У Л А Ц И Ј А"]
["I","Претходни и припремни работи"]
["II",{"$f":"B11","v":"Чистење на вегетација и нанос"}]
[null,"ВКУПНО:"]